bitfinex/quotes_BTCUSD_20240712
["timestamp","ask_amount","ask_price","bid_price","bid_amount"]
[1720783603066,0.02653911,57346.0,57345.0,1.8436524]
[1720783604918,0.02653911,57346.0,57345.0,1.8576524]
[1720783605117,0.02653911,57346.0,57345.0,1.8716524]
[1720783605494,0.02653911,57346.0,57345.0,1.8576524]
[1720783605703,0.02653911,57346.0,57345.0,1.8716524]
[1720783606545,0.002,57349.0,57348.0,1.451867]
[1720783606793,0.002,57349.0,57348.0,1.8675044]
[1720783606997,0.002,57349.0,57348.0,2.2162514]
[1720783607290,0.02026839,57349.0,57348.0,2.2162514]
[1720783607676,0.02026839,57349.0,57348.0,2.2302514]
[1720783607868,6.836e-05,57365.0,57364.0,0.6562]
[1720783608068,6.836e-05,57365.0,57364.0,0.7378]
[1720783608448,6.836e-05,57365.0,57364.0,0.7978]
[1720783609058,6.836e-05,57365.0,57364.0,1.692425]
[1720783609292,6.836e-05,57365.0,57364.0,1.1423624]
[1720783609498,6.836e-05,57365.0,57364.0,1.8396624]
[1720783609694,6.836e-05,57365.0,57364.0,2.4253124]
[1720783610313,6.836e-05,57365.0,57364.0,2.4393124]
[1720783610699,6.836e-05,57365.0,57364.0,2.4253124]
[1720783611341,6.836e-05,57365.0,57364.0,2.4393124]
[1720783611540,6.836e-05,57365.0,57364.0,2.2253124]
[1720783611762,6.836e-05,57365.0,57364.0,2.2113124]
[1720783611945,6.836e-05,57365.0,57364.0,2.24803292]
[1720783612311,0.002,57369.0,57368.0,0.7206]
[1720783612515,0.002,57369.0,57368.0,0.88731435]
[1720783612955,0.002,57369.0,57368.0,1.43325335]
[1720783613509,0.002,57369.0,57368.0,1.79587935]
[1720783613836,0.002,57369.0,57368.0,2.14450535]
[1720783614037,0.002,57369.0,57368.0,2.31474275]
[1720783614439,0.002,57369.0,57368.0,2.32874275]
[1720783614643,0.002,57369.0,57368.0,2.31474275]
[1720783615280,0.002,57369.0,57368.0,2.79884275]
[1720783615478,0.00827,57370.0,57369.0,2.42487]
[1720783615680,0.00827,57370.0,57369.0,2.7181074]
[1720783617505,0.00827,57370.0,57369.0,2.7321074]
[1720783617706,0.00826,57376.0,57375.0,1.291457]
[1720783617880,0.00826,57376.0,57375.0,1.702257]
[1720783618487,0.00826,57376.0,57375.0,0.7478]
[1720783618683,0.182548,57376.0,57375.0,0.82858]
[1720783618862,0.182548,57376.0,57375.0,0.6662]
[1720783619463,0.00826,57376.0,57375.0,0.6662]
[1720783619673,0.00826,57376.0,57375.0,0.7618]
[1720783619674,0.182548,57376.0,57375.0,0.7618]
[1720783620383,0.182548,57376.0,57375.0,0.42271611]
[1720783620737,0.182548,57376.0,57375.0,0.61741772]
[1720783620873,0.182548,57376.0,57375.0,0.55671611]
[1720783621070,0.182548,57376.0,57375.0,0.54271611]
[1720783621503,0.182548,57376.0,57375.0,0.52]
[1720783621700,0.182548,57376.0,57375.0,0.529]
[1720783621902,0.182548,57376.0,57375.0,0.209]
[1720783622121,0.182548,57376.0,57375.0,0.409]
[1720783622519,0.182548,57376.0,57375.0,0.423]
[1720783623140,0.182548,57376.0,57375.0,0.209]
[1720783623285,0.182548,57376.0,57375.0,0.219]
[1720783623906,0.182548,57376.0,57375.0,0.119]
[1720783624290,0.267048,57376.0,57375.0,0.119]
[1720783626371,0.267048,57376.0,57375.0,0.109]
[1720783626643,0.267048,57376.0,57375.0,0.009]
[1720783626908,0.267048,57376.0,57375.0,0.118]
[1720783627626,0.267048,57376.0,57375.0,0.109]
[1720783628057,0.267048,57376.0,57375.0,0.117]
[1720783629249,0.267048,57376.0,57375.0,0.092]
[1720783630038,0.182548,57376.0,57375.0,0.092]
[1720783630240,0.182548,57376.0,57375.0,0.43971144]
[1720783630469,0.182548,57376.0,57375.0,0.512]
[1720783631218,0.182548,57376.0,57375.0,0.6511]
[1720783631219,0.00826,57376.0,57375.0,0.6511]
[1720783631424,0.00826,57376.0,57375.0,0.7115]
[1720783631715,0.00826,57376.0,57375.0,0.78602094]
[1720783632279,0.00826,57376.0,57375.0,0.76902094]
[1720783632481,0.00826,57376.0,57375.0,0.6425]
[1720783632639,0.182548,57376.0,57375.0,0.183]
[1720783632849,0.182548,57376.0,57375.0,0.383]
[1720783633064,0.182548,57376.0,57375.0,0.512]
[1720783633666,0.182548,57376.0,57375.0,0.603]
[1720783633883,0.182548,57376.0,57375.0,0.55841144]
[1720783634118,0.182548,57376.0,57375.0,0.283]
[1720783634327,0.182548,57376.0,57375.0,0.483]
[1720783634524,0.182548,57376.0,57375.0,0.275]
[1720783634932,0.182548,57376.0,57375.0,0.489]
[1720783635140,0.182548,57376.0,57375.0,0.486]
[1720783635415,0.182548,57376.0,57375.0,0.296]
[1720783636037,0.182548,57376.0,57375.0,0.616]
[1720783637352,0.182548,57376.0,57375.0,0.296]
[1720783638846,0.182548,57376.0,57375.0,0.496]
[1720783639468,0.182548,57376.0,57375.0,0.616]
[1720783640100,0.182548,57376.0,57375.0,0.7567]
[1720783641361,0.182548,57376.0,57375.0,0.6367]
[1720783641494,0.182548,57376.0,57375.0,0.7567]
[1720783641891,0.182548,57376.0,57375.0,0.6367]
[1720783642213,0.182548,57376.0,57375.0,0.4367]
[1720783644112,0.182548,57376.0,57375.0,0.6367]
[1720783644316,0.182548,57376.0,57375.0,0.7567]
[1720783646783,0.182548,57376.0,57375.0,0.84088144]
[1720783647213,0.182548,57376.0,57375.0,0.7567]
[1720783650286,0.182548,57376.0,57375.0,0.6367]
[1720783650751,0.182548,57376.0,57375.0,0.7567]
[1720783651482,0.182548,57376.0,57375.0,0.757613]
[1720783651724,0.182548,57376.0,57375.0,0.637613]
[1720783652222,0.182548,57376.0,57375.0,0.437613]
[1720783652457,0.182548,57376.0,57375.0,0.637613]
[1720783652689,0.182548,57376.0,57375.0,0.440213]
[1720783652929,0.182548,57376.0,57375.0,0.640213]
[1720783653698,0.182548,57376.0,57375.0,0.440213]
[1720783654418,0.182548,57376.0,57375.0,0.297013]
[1720783659915,0.182548,57376.0,57375.0,0.497013]
[1720783661311,0.182548,57376.0,57375.0,0.297013]
[1720783662164,0.267048,57376.0,57375.0,0.297013]
[1720783662449,0.267048,57376.0,57375.0,0.197013]
[1720783663976,0.44354243,57376.0,57375.0,0.197013]
[1720783664334,0.16316617,57376.0,57375.0,0.197013]
[1720783664535,0.174288,57376.0,57375.0,0.197013]
[1720783665144,0.174288,57376.0,57375.0,0.122013]
[1720783665340,0.174288,57376.0,57375.0,0.197013]
[1720783666969,0.174288,57376.0,57375.0,0.186013]
[1720783667173,0.174288,57376.0,57375.0,0.185013]
[1720783667761,0.174288,57376.0,57375.0,0.119013]
[1720783667939,0.174288,57376.0,57375.0,0.194013]
[1720783674667,0.255688,57376.0,57375.0,0.194013]
[1720783678915,0.43217437,57376.0,57375.0,0.194013]
[1720783679145,0.43217298,57376.0,57375.0,0.194013]
[1720783679371,0.174288,57376.0,57375.0,0.194013]
[1720783679602,0.255688,57376.0,57375.0,0.194013]
[1720783679836,0.43217298,57376.0,57375.0,0.331313]
[1720783680071,0.255688,57376.0,57375.0,0.331313]
[1720783681443,0.43217298,57376.0,57375.0,0.331313]
[1720783682379,0.43217298,57376.0,57375.0,0.33452551]
[1720783683309,0.17171604,57376.0,57375.0,0.33452551]
[1720783683537,0.17254604,57376.0,57375.0,0.33452551]
[1720783683786,0.00083,57376.0,57375.0,0.36797806]
[1720783684013,0.00083,57376.0,57375.0,0.77309241]
[1720783684484,0.00083,57376.0,57375.0,0.73963986]
[1720783685252,0.00083,57376.0,57375.0,0.83963986]
[1720783690780,0.00083,57376.0,57375.0,0.83063986]
[1720783690983,0.00083,57376.0,57375.0,0.74552551]
[1720783691225,0.00083,57376.0,57375.0,0.75652551]
[1720783692007,0.00083,57376.0,57375.0,0.74752551]
[1720783692208,0.00083,57376.0,57375.0,0.73652551]
[1720783692407,0.00083,57376.0,57375.0,0.74752551]
[1720783692869,0.00083,57376.0,57375.0,0.73652551]
[1720783693043,0.00083,57376.0,57375.0,0.76452551]
[1720783695048,0.00083,57376.0,57375.0,0.84911806]
[1720783695812,0.00083,57376.0,57375.0,0.76452551]
[1720783700697,0.00083,57376.0,57375.0,0.76452551]
[1720783709362,0.00083,57376.0,57375.0,0.64452551]
[1720783709564,0.00083,57376.0,57375.0,0.44452551]
[1720783709763,0.00083,57376.0,57375.0,0.64452551]
[1720783710519,0.00083,57376.0,57375.0,0.44452551]
[1720783710733,0.00083,57376.0,57375.0,0.20722551]
[1720783710939,0.08223,57376.0,57375.0,0.20722551]
[1720783711917,0.08223,57376.0,57375.0,0.19322551]
[1720783712121,0.08223,57376.0,57375.0,0.20222551]
[1720783712439,0.08223,57376.0,57375.0,0.18822551]
[1720783712681,0.08223,57376.0,57375.0,0.19722551]
[1720783713674,0.00228195,57381.0,57375.0,0.19722551]
[1720783713878,0.0814,57378.0,57375.0,0.19722551]
[1720783714718,0.0814,57378.0,57375.0,0.18822551]
[1720783714918,0.0814,57378.0,57375.0,0.19022551]
[1720783715289,0.0814,57378.0,57377.0,0.075]
[1720783716720,0.0814,57378.0,57377.0,0.087]
[1720783716931,0.00228195,57381.0,57377.0,0.087]
[1720783716932,0.08368195,57381.0,57377.0,0.087]
[1720783717071,0.007327,57381.0,57378.0,0.0624]
[1720783717757,0.007327,57381.0,57379.0,0.00306353]
[1720783718941,0.007327,57381.0,57379.0,0.002]
[1720783720283,0.007327,57381.0,57380.0,0.2809]
[1720783720705,0.007327,57381.0,57380.0,0.35431288]
[1720783720907,0.007327,57381.0,57380.0,0.41531288]
[1720783721417,0.007327,57381.0,57380.0,0.3419]
[1720783721583,0.007327,57381.0,57380.0,0.3439]
[1720783722771,0.007327,57381.0,57380.0,0.3459]
[1720783722977,0.007327,57381.0,57380.0,0.52396353]
[1720783723225,0.007327,57381.0,57380.0,0.64396353]
[1720783723423,0.007327,57381.0,57380.0,0.6409]
[1720783728005,0.00228195,57381.0,57380.0,0.6409]
[1720783728206,0.00228195,57381.0,57380.0,0.81823953]
[1720783728527,0.00228195,57381.0,57380.0,1.30619253]
[1720783728677,0.00228195,57381.0,57380.0,1.313129]
[1720783728881,0.00228195,57381.0,57380.0,1.301129]
[1720783729085,0.00228195,57381.0,57380.0,1.81217778]
[1720783729291,0.00228195,57381.0,57380.0,2.18473078]
[1720783729690,0.00228195,57381.0,57380.0,2.17473078]
[1720783730104,0.00228195,57381.0,57380.0,2.18873078]
[1720783730695,0.00228195,57381.0,57380.0,2.17473078]
[1720783731101,0.00228195,57381.0,57380.0,2.16073078]
[1720783731829,0.00228195,57381.0,57380.0,1.81217778]
[1720783732027,0.00228195,57381.0,57380.0,1.82617778]
[1720783732233,0.00228195,57381.0,57380.0,2.17473078]
[1720783732428,0.00228195,57381.0,57380.0,1.82617778]
[1720783732609,0.00228195,57381.0,57380.0,1.81717778]
[1720783732812,0.00228195,57381.0,57380.0,1.75717778]
[1720783733196,0.00228195,57381.0,57380.0,1.06007178]
[1720783733400,0.00228195,57381.0,57380.0,0.2449]
[1720783733604,0.00228195,57381.0,57380.0,0.103]
[1720783734367,0.00228195,57381.0,57380.0,0.028]
[1720783734755,0.00228195,57381.0,57380.0,0.014]
[1720783734954,0.08368195,57381.0,57380.0,0.014]
[1720783735153,0.08368195,57381.0,57380.0,0.005]
[1720783735356,0.08368195,57381.0,57378.0,0.08371444]
[1720783735357,0.08368195,57381.0,57379.0,0.075]
[1720783735563,0.08368195,57381.0,57380.0,0.082]
[1720783735759,0.00228195,57381.0,57380.0,0.084]
[1720783735983,0.00228195,57381.0,57380.0,0.077]
[1720783736382,0.00228195,57381.0,57380.0,0.079]
[1720783737361,0.00228195,57381.0,57380.0,0.179]
[1720783737557,0.00228195,57381.0,57380.0,0.177]
[1720783737982,0.00228195,57381.0,57380.0,0.178]
[1720783738225,0.00228195,57381.0,57380.0,0.376]
[1720783739107,0.00228195,57381.0,57380.0,0.377]
[1720783739312,0.00228195,57381.0,57380.0,0.497]
[1720783739471,0.00228195,57381.0,57380.0,0.379]
[1720783739669,0.00228195,57381.0,57380.0,0.499]
[1720783739870,0.00228195,57381.0,57380.0,0.497]
[1720783740234,0.00228195,57381.0,57380.0,0.501]
[1720783740517,0.00228195,57381.0,57380.0,0.499]
[1720783740646,0.00228195,57381.0,57380.0,0.379]
[1720783741254,0.00228195,57381.0,57380.0,0.383]
[1720783741482,0.00228195,57381.0,57380.0,0.503]
[1720783741686,0.00228195,57381.0,57380.0,0.71136288]
[1720783741901,0.00228195,57381.0,57380.0,0.70736288]
[1720783742104,0.00228195,57381.0,57380.0,0.71736288]
[1720783742780,0.00228195,57381.0,57380.0,0.71236288]
[1720783742986,0.00228195,57381.0,57380.0,0.822976]
[1720783743337,0.00228195,57381.0,57380.0,1.783582]
[1720783743714,0.00228195,57381.0,57380.0,1.778582]
[1720783743918,0.00228195,57381.0,57380.0,1.788582]
[1720783744296,0.00228195,57381.0,57380.0,1.728582]
[1720783744673,0.00228195,57381.0,57380.0,1.8988194]
[1720783744794,0.00228195,57381.0,57380.0,1.8888194]
[1720783745002,0.00228195,57381.0,57380.0,1.3367664]
[1720783745218,0.00228195,57381.0,57380.0,1.170529]
[1720783745662,0.00228195,57381.0,57380.0,1.180529]
[1720783745850,0.00228195,57381.0,57380.0,0.6577]
[1720783746089,0.00228195,57381.0,57380.0,0.6477]
[1720783746208,0.00228195,57381.0,57380.0,0.65076353]
[1720783746406,0.00228195,57381.0,57380.0,0.66476353]
[1720783747125,0.00228195,57381.0,57380.0,0.6617]
[1720783747531,0.00228195,57381.0,57380.0,0.70365336]
[1720783748098,0.00228195,57381.0,57380.0,0.70058983]
[1720783748300,0.00228195,57381.0,57380.0,0.662613]
[1720783748301,0.02053771,57381.0,57380.0,0.662613]
[1720783748879,0.02053771,57381.0,57380.0,0.722613]
[1720783749175,0.02053771,57381.0,57380.0,0.66567653]
[1720783749387,0.02053771,57381.0,57380.0,0.662613]
[1720783749675,0.02053771,57381.0,57380.0,0.79684863]
[1720783750049,0.02053771,57381.0,57380.0,1.03112463]
[1720783750388,0.02053771,57381.0,57380.0,0.85684863]
[1720783750593,0.02053771,57381.0,57380.0,0.79991216]
[1720783750798,0.0162015,57389.0,57382.0,2.301393]
[1720783750959,0.0162015,57389.0,57388.0,1.220156]
[1720783751159,0.0162015,57389.0,57388.0,2.20577835]
[1720783751487,0.0162015,57389.0,57388.0,2.22877835]
[1720783751702,0.03445306,57389.0,57388.0,2.22877835]
[1720783751936,0.03445306,57389.0,57388.0,2.39901575]
[1720783753409,0.03445306,57389.0,57388.0,2.61301575]
[1720783753583,0.03445306,57389.0,57388.0,2.41301575]
[1720783753788,0.03445306,57389.0,57388.0,2.42701575]
[1720783754025,0.03445306,57389.0,57388.0,2.41301575]
[1720783754394,0.00827,57401.0,57400.0,1.674512]
[1720783754599,0.00827,57401.0,57400.0,2.220512]
[1720783754801,0.00827,57401.0,57400.0,2.243512]
[1720783756108,0.00827,57401.0,57400.0,1.82079444]
[1720783756314,0.00827,57401.0,57400.0,1.72079444]
[1720783756638,0.00827,57401.0,57400.0,0.39771444]
[1720783756768,0.00827,57401.0,57400.0,0.41171444]
[1720783756982,0.00827,57401.0,57400.0,0.39771444]
[1720783757186,0.00827,57401.0,57400.0,0.41171444]
[1720783757472,0.00827,57401.0,57400.0,0.21171444]
[1720783757598,0.00827,57401.0,57400.0,0.19771444]
[1720783757803,0.00827,57401.0,57400.0,0.21171444]
[1720783758208,0.00827,57401.0,57400.0,0.54488588]
[1720783758428,0.00827,57401.0,57400.0,0.51671444]
[1720783758680,0.00827,57401.0,57400.0,0.53071444]
[1720783759013,0.00827,57401.0,57400.0,0.51771444]
[1720783759228,0.00827,57401.0,57400.0,0.52871444]
[1720783759434,0.00827,57401.0,57400.0,0.58158588]
[1720783759638,0.00827,57401.0,57400.0,0.82188588]
[1720783759836,0.00827,57401.0,57400.0,2.39389788]
[1720783760058,0.00827,57401.0,57400.0,2.41689788]
[1720783760297,0.00827,57401.0,57400.0,2.76432988]
[1720783760690,0.00827,57401.0,57400.0,2.77632988]
[1720783760970,0.00827,57401.0,57400.0,2.31589788]
[1720783761170,0.00827,57401.0,57400.0,2.32989788]
[1720783761472,0.00827,57401.0,57400.0,2.31689788]
[1720783762130,0.00827,57401.0,57400.0,2.30289788]
[1720783762331,0.00827,57401.0,57400.0,2.31689788]
[1720783762939,0.00827,57401.0,57400.0,2.30289788]
[1720783763177,0.00827,57401.0,57400.0,2.41689788]
[1720783763483,0.00827,57401.0,57400.0,2.08246588]
[1720783763687,0.00827,57401.0,57400.0,2.06846588]
[1720783764191,0.00827,57401.0,57400.0,2.08246588]
[1720783764327,0.00827,57401.0,57400.0,1.30973044]
[1720783764933,0.00827,57401.0,57400.0,1.31800044]
[1720783765133,0.00827,57401.0,57400.0,1.66643244]
[1720783765335,0.00827,57401.0,57400.0,1.60643244]
[1720783765555,0.00827,57401.0,57400.0,1.56643244]
[1720783765768,0.00827,57401.0,57400.0,1.75154679]
[1720783766042,0.00827,57401.0,57400.0,1.92178419]
[1720783766242,0.00827,57401.0,57400.0,2.27021619]
[1720783768422,0.00827,57401.0,57400.0,2.09997879]
[1720783769714,0.00827,57401.0,57400.0,1.93997879]
[1720783770118,0.00827,57401.0,57400.0,1.58327679]
[1720783770346,0.00595826,57401.0,57400.0,1.58327679]
[1720783771335,0.00595826,57401.0,57400.0,1.64327679]
[1720783771585,0.39702151,57424.0,57411.0,0.3]
[1720783771743,0.05289367,57423.0,57415.0,0.08511435]
[1720783771915,0.002,57429.0,57418.0,0.075]
[1720783772113,0.0182497,57427.0,57419.0,0.00306353]
[1720783772520,0.0182497,57427.0,57420.0,0.0027769]
[1720783772728,0.0182497,57427.0,57421.0,0.00306353]
[1720783773129,0.0182497,57427.0,57420.0,0.0027769]
[1720783773873,0.0202497,57427.0,57420.0,0.0027769]
[1720783774556,0.0202497,57427.0,57423.0,0.1]
[1720783774665,0.0202497,57427.0,57424.0,0.00306353]
[1720783776141,0.0182497,57427.0,57424.0,0.00306353]
[1720783776340,0.0182497,57427.0,57424.0,0.00406353]
[1720783776537,0.0182497,57427.0,57426.0,0.00871444]
[1720783777045,0.0202497,57427.0,57426.0,0.00871444]
[1720783778001,0.0182497,57427.0,57426.0,0.00871444]
[1720783779271,0.0202497,57427.0,57426.0,0.00871444]
[1720783779716,0.0190797,57427.0,57426.0,0.00871444]
[1720783779889,0.0210797,57427.0,57426.0,0.00871444]
[1720783780837,0.03839072,57427.0,57426.0,0.00871444]
[1720783781660,0.0210797,57427.0,57426.0,0.00871444]
[1720783783073,0.0203797,57427.0,57426.0,0.00871444]
[1720783791364,0.0203797,57427.0,57422.0,0.075]
[1720783791583,0.0203797,57427.0,57423.0,0.00306353]
[1720783792137,0.0203797,57427.0,57422.0,0.075]
[1720783792791,0.423023,57426.0,57420.0,0.0027769]
[1720783792990,0.423023,57426.0,57414.0,0.075]
[1720783793192,0.17593118,57425.0,57414.0,0.075]
[1720783793392,0.03762072,57427.0,57411.0,0.2202]
[1720783793393,1.19184704,57424.0,57411.0,0.2202]
[1720783793621,0.03762072,57427.0,57412.0,0.16011435]
[1720783793622,1.015696,57423.0,57412.0,0.16011435]
[1720783793947,0.17615104,57423.0,57412.0,0.16011435]
[1720783794149,0.17615104,57422.0,57412.0,0.16011435]
[1720783794300,0.17615104,57420.0,57414.0,0.001]
[1720783794540,0.17615104,57420.0,57414.0,0.076]
[1720783794787,0.17615104,57421.0,57414.0,0.076]
[1720783795015,0.17615104,57421.0,57414.0,0.001]
[1720783795240,0.17615104,57418.0,57410.0,0.075]
[1720783795457,0.17615104,57415.0,57410.0,0.075]
[1720783795673,0.17615104,57415.0,57414.0,0.001]
[1720783795894,0.17615104,57415.0,57410.0,0.075]
[1720783795895,0.1445,57418.0,57410.0,0.075]
[1720783796121,0.17633105,57413.0,57410.0,0.075]
[1720783796359,0.1445,57418.0,57412.0,0.001]
[1720783796598,0.954708,57417.0,57412.0,0.001]
[1720783796817,0.954708,57417.0,57410.0,0.075]
[1720783797928,0.957708,57417.0,57410.0,0.075]
[1720783798160,0.003,57417.0,57414.0,0.001]
[1720783798394,0.03817883,57417.0,57409.0,0.075]
[1720783798864,0.04217883,57417.0,57409.0,0.075]
[1720783799306,0.03917883,57417.0,57409.0,0.075]
[1720783799509,0.02559667,57416.0,57409.0,0.075]
[1720783800745,0.02559667,57416.0,57405.0,0.075]
[1720783800989,0.02559667,57416.0,57403.0,0.0801]
[1720783800990,0.02559667,57416.0,57408.0,0.075]
[1720783801430,0.02659667,57416.0,57408.0,0.075]
[1720783801631,0.02859667,57416.0,57408.0,0.075]
[1720783802212,0.17638003,57409.0,57408.0,0.1393]
[1720783802415,0.17638003,57411.0,57408.0,0.2178]
[1720783802627,0.17638003,57412.0,57408.0,0.2178]
[1720783802962,0.17636193,57412.0,57408.0,0.2178]
[1720783803682,0.002,57416.0,57408.0,0.2178]
[1720783803683,0.17636193,57411.0,57408.0,0.2178]
[1720783803888,0.17636193,57412.0,57410.0,0.2]
[1720783804346,0.17636193,57412.0,57408.0,0.5178]
[1720783804549,0.00920397,57416.0,57413.0,0.3178]
[1720783804550,0.17636193,57414.0,57413.0,0.3178]
[1720783804769,0.00920397,57416.0,57415.0,0.175]
[1720783804960,0.00920397,57416.0,57412.0,0.075]
[1720783805196,0.17744,57415.0,57405.0,0.075]
[1720783805322,0.1763591,57409.0,57405.0,0.075]
[1720783805526,0.1763591,57407.0,57405.0,0.075]
[1720783805747,0.1763591,57407.0,57404.0,0.1428]
[1720783805748,0.1763591,57407.0,57404.0,0.075]
[1720783805948,0.17637252,57405.0,57404.0,0.075]
[1720783806173,0.17637253,57405.0,57404.0,0.075]
[1720783806376,0.0171568,57414.0,57404.0,0.075]
[1720783806583,0.17633513,57405.0,57404.0,0.075]
[1720783806784,0.0171568,57414.0,57404.0,0.075]
[1720783806939,0.1763372,57405.0,57404.0,0.075]
[1720783807140,0.0171568,57414.0,57406.0,0.075]
[1720783807381,0.1445,57415.0,57407.0,0.075]
[1720783807798,0.17629273,57408.0,57407.0,0.075]
[1720783808843,0.17629273,57408.0,57407.0,0.076]
[1720783809047,0.193922,57408.0,57407.0,0.076]
[1720783809249,0.01762927,57408.0,57407.0,0.076]
[1720783809398,0.01762927,57408.0,57407.0,0.177]
[1720783809399,0.17625516,57408.0,57407.0,0.177]
[1720783809601,0.17625516,57408.0,57407.0,0.102]
[1720783809833,0.1515,57415.0,57407.0,0.102]
[1720783810035,0.2035,57413.0,57407.0,0.102]
[1720783810246,0.543278,57412.0,57407.0,0.0019101]
[1720783810577,1.673697,57411.0,57407.0,0.0039101]
[1720783810984,0.025,57407.0,57400.0,0.05773557]
[1720783811191,0.2035,57401.0,57393.0,0.075]
[1720783811421,0.1761893,57394.0,57393.0,0.03529771]
[1720783811626,0.984354,57394.0,57393.0,0.03529771]
[1720783811841,0.91547,57394.0,57393.0,0.03529771]
[1720783812896,0.91547,57394.0,57384.0,0.17917]
[1720783813174,0.17609265,57392.0,57386.0,0.03377]
[1720783813382,0.091547,57393.0,57388.0,0.03377]
[1720783813609,0.03286682,57392.0,57388.0,0.03377]
[1720783814686,0.17609265,57395.0,57388.0,0.03377]
[1720783814894,0.52244298,57396.0,57388.0,0.03377]
[1720783815095,0.52244298,57396.0,57389.0,0.0603]
[1720783815096,0.007,57392.0,57389.0,0.0603]
[1720783815599,0.007,57392.0,57389.0,0.06274722]
[1720783815805,0.015,57392.0,57389.0,0.06274722]
[1720783816219,0.007,57392.0,57389.0,0.06274722]
[1720783816430,0.17585718,57399.0,57389.0,0.06274722]
[1720783816640,0.008,57392.0,57389.0,0.06274722]
[1720783817224,0.10826889,57398.0,57389.0,0.06274722]
[1720783817579,0.007,57392.0,57389.0,0.06274722]
[1720783818014,0.10826889,57398.0,57389.0,0.06274722]
[1720783818341,0.05164493,57397.0,57389.0,0.06274722]
[1720783819363,0.008,57392.0,57389.0,0.06274722]
[1720783819920,0.05164493,57397.0,57389.0,0.06274722]
[1720783820128,0.06564493,57397.0,57389.0,0.06274722]
[1720783820691,0.05164493,57397.0,57389.0,0.06274722]
[1720783820892,0.008,57392.0,57389.0,0.06274722]
[1720783822752,0.02030842,57396.0,57389.0,0.06274722]
[1720783823158,0.007,57392.0,57389.0,0.00244722]
[1720783823331,0.007,57392.0,57388.0,0.03377]
[1720783823535,0.2035,57391.0,57387.0,0.03377]
[1720783823747,0.02185,57390.0,57389.0,0.00236163]
[1720783823949,0.19282807,57391.0,57389.0,0.00257632]
[1720783824193,0.19282807,57391.0,57387.0,0.03377]
[1720783824194,0.282441,57390.0,57387.0,0.03377]
[1720783824545,0.626212,57390.0,57387.0,0.03377]
[1720783824747,0.626212,57390.0,57382.0,0.03377]
[1720783824748,0.67373891,57390.0,57382.0,0.03377]
[1720783824930,1.498726,57389.0,57382.0,0.03377]
[1720783825131,0.80800956,57388.0,57383.0,0.00227133]
[1720783825343,0.76166,57387.0,57382.0,0.03377]
[1720783825458,0.76166,57387.0,57384.0,0.00227133]
[1720783825680,0.709721,57387.0,57382.0,0.03377]
[1720783825904,0.709721,57387.0,57385.0,0.00227133]
[1720783825905,0.557997,57387.0,57385.0,0.00227133]
[1720783826109,0.523114,57387.0,57382.0,0.03377]
[1720783826358,0.523114,57387.0,57380.0,0.064313]
[1720783826359,0.1445,57388.0,57383.0,0.03377]
[1720783826593,0.003,57387.0,57383.0,0.03377]
[1720783826844,0.03453281,57387.0,57383.0,0.03377]
[1720783827082,0.03753281,57387.0,57383.0,0.03377]
[1720783827326,0.03453281,57387.0,57383.0,0.03377]
[1720783827567,0.1475,57388.0,57384.0,0.00227133]
[1720783827798,0.003,57387.0,57383.0,0.03377]
[1720783828025,0.522811,57382.0,57381.0,0.03377]
[1720783828232,0.871352,57382.0,57381.0,0.03377]
[1720783828434,0.871352,57382.0,57381.0,0.03604133]
[1720783828634,1.568434,57382.0,57381.0,0.03604133]
[1720783829047,1.568434,57382.0,57381.0,0.31534133]
[1720783829315,1.568434,57382.0,57381.0,0.49874133]
[1720783830184,1.569434,57382.0,57381.0,0.49874133]
[1720783830565,1.569434,57382.0,57381.0,0.37874133]
[1720783830743,1.569434,57382.0,57381.0,0.49874133]
[1720783831355,1.569434,57382.0,57381.0,0.17874133]
[1720783831565,1.569434,57382.0,57381.0,0.37874133]
[1720783832553,1.6871894,57382.0,57381.0,0.17874133]
[1720783832757,1.220893,57382.0,57381.0,0.49874133]
[1720783832986,1.220893,57382.0,57381.0,0.37874133]
[1720783833347,1.220893,57382.0,57381.0,0.17874133]
[1720783833598,1.220893,57382.0,57381.0,0.49874133]
[1720783833992,1.220893,57382.0,57381.0,0.37874133]
[1720783834198,1.220893,57382.0,57381.0,0.17874133]
[1720783834400,1.220893,57382.0,57381.0,0.37874133]
[1720783834777,1.220893,57382.0,57381.0,0.17874133]
[1720783835182,1.220893,57382.0,57381.0,0.03377]
[1720783835359,0.52282,57381.0,57380.0,0.000913]
[1720783835564,0.871367,57381.0,57380.0,0.000913]
[1720783835769,0.9789537,57381.0,57380.0,0.000913]
[1720783835977,1.6760477,57381.0,57380.0,0.000913]
[1720783836698,1.6780477,57381.0,57380.0,0.000913]
[1720783837664,2.0265947,57381.0,57380.0,0.000913]
[1720783837882,2.0255947,57381.0,57380.0,0.000913]
[1720783838301,2.0255947,57381.0,57375.0,0.063613]
[1720783838302,0.522865,57376.0,57375.0,0.097383]
[1720783838708,1.220019,57376.0,57375.0,0.09965433]
[1720783838928,1.568596,57376.0,57375.0,0.09965433]
[1720783839131,1.568596,57376.0,57375.0,0.097383]
[1720783839264,1.6761827,57376.0,57375.0,0.097383]
[1720783839471,1.6761827,57376.0,57375.0,0.034783]
[1720783839900,2.0257597,57376.0,57375.0,0.034783]
[1720783840108,2.0267597,57376.0,57375.0,0.034783]
[1720783840304,2.0267597,57376.0,57375.0,0.001013]
[1720783841265,2.0257597,57376.0,57375.0,0.001013]
[1720783842087,2.0247597,57376.0,57375.0,0.001013]
[1720783842312,2.0267597,57376.0,57375.0,0.001013]
[1720783842678,2.0277597,57376.0,57375.0,0.001013]
[1720783842876,1.87523135,57376.0,57375.0,0.001013]
[1720783844594,0.522912,57371.0,57368.0,0.0797]
[1720783844811,0.522912,57371.0,57367.0,0.03377]
[1720783844812,0.522939,57368.0,57367.0,0.03377]
[1720783845001,1.045878,57368.0,57365.0,0.0606]
[1720783845229,0.522957,57366.0,57365.0,0.0606]
[1720783845387,1.220233,57366.0,57365.0,0.09437]